[Event "Live Chess"]
[Site "Chess.com"]
[Date "2011.01.26"]
[Round "-"]
[White "samdvick"]
[Black "hipposcottimus"]
[Result "0-1"]
[CurrentPosition "6rk/ppQ3p1/4b3/8/2p4P/8/2Pr2q1/4R2K w - -"]
[Timezone "UTC"]
[ECO "D00"]
[ECOUrl "https://www.chess.com/openings/Queens-Pawn-Opening-Chigorin-Variation-2...c6-3.e4"]
[UTCDate "2011.01.26"]
[UTCTime "22:40:58"]
[WhiteElo "1687"]
[BlackElo "1624"]
[TimeControl "60"]
[Termination "hipposcottimus won by checkmate"]
[StartTime "22:40:58"]
[EndDate "2011.01.26"]
[EndTime "22:43:07"]
[Link "https://www.chess.com/game/live/91712244"]

1. d4 {[%clk 0:01:00]} 1... d5 {[%clk 0:01:00]} 2. Nc3 {[%clk 0:00:59.6]} 2... c6 {[%clk 0:00:59.7]} 3. e4 {[%clk 0:00:59.2]} 3... e6 {[%clk 0:00:59.1]} 4. f3 {[%clk 0:00:58.7]} 4... f6 {[%clk 0:00:57.9]} 5. Be3 {[%clk 0:00:58.2]} 5... Ne7 {[%clk 0:00:57.5]} 6. Bd3 {[%clk 0:00:55.5]} 6... Ng6 {[%clk 0:00:57.2]} 7. f4 {[%clk 0:00:52.4]} 7... Nd7 {[%clk 0:00:56.9]} 8. e5 {[%clk 0:00:51.4]} 8... Ne7 {[%clk 0:00:56.3]} 9. Nf3 {[%clk 0:00:49.7]} 9... fxe5 {[%clk 0:00:55.4]} 10. fxe5 {[%clk 0:00:48.7]} 10... Ng6 {[%clk 0:00:54.7]} 11. Bg5 {[%clk 0:00:47.1]} 11... Be7 {[%clk 0:00:52.7]} 12. Bxe7 {[%clk 0:00:46.2]} 12... Nxe7 {[%clk 0:00:52.4]} 13. Qd2 {[%clk 0:00:45.5]} 13... O-O {[%clk 0:00:50.1]} 14. O-O-O {[%clk 0:00:44.4]} 14... c5 {[%clk 0:00:49.2]} 15. g4 {[%clk 0:00:42.9]} 15... cxd4 {[%clk 0:00:48.1]} 16. Nxd4 {[%clk 0:00:42.1]} 16... Nxe5 {[%clk 0:00:46.8]} 17. Bxh7+ {[%clk 0:00:40.3]} 17... Kh8 {[%clk 0:00:43.6]} 18. Bd3 {[%clk 0:00:37.5]} 18... Nxg4 {[%clk 0:00:42.7]} 19. h3 {[%clk 0:00:36.4]} 19... Ne5 {[%clk 0:00:41.4]} 20. h4 {[%clk 0:00:35.3]} 20... Nc4 {[%clk 0:00:41.1]} 21. Bxc4 {[%clk 0:00:33.9]} 21... dxc4 {[%clk 0:00:40]} 22. Qf2 {[%clk 0:00:30.2]} 22... Nd5 {[%clk 0:00:39.7]} 23. Qg3 {[%clk 0:00:28.2]} 23... Nxc3 {[%clk 0:00:38.8]} 24. Nxe6 {[%clk 0:00:26.6]} 24... Nxa2+ {[%clk 0:00:36.8]} 25. Kb1 {[%clk 0:00:25]} 25... Nc3+ {[%clk 0:00:29]} 26. bxc3 {[%clk 0:00:23.9]} 26... Qb6+ {[%clk 0:00:28]} 27. Kc1 {[%clk 0:00:22.3]} 27... Qxe6 {[%clk 0:00:27.1]} 28. Rhe1 {[%clk 0:00:20.7]} 28... Qa6 {[%clk 0:00:20.8]} 29. Rg1 {[%clk 0:00:18.4]} 29... Rg8 {[%clk 0:00:17.2]} 30. Qc7 {[%clk 0:00:16.4]} 30... Be6 {[%clk 0:00:15.2]} 31. Rde1 {[%clk 0:00:14.4]} 31... Qa1+ {[%clk 0:00:12.8]} 32. Kd2 {[%clk 0:00:13.4]} 32... Rad8+ {[%clk 0:00:11.1]} 33. Ke2 {[%clk 0:00:12.6]} 33... Qxc3 {[%clk 0:00:08.6]} 34. Kf2 {[%clk 0:00:10.8]} 34... Qf6+ {[%clk 0:00:07.2]} 35. Kg2 {[%clk 0:00:09.8]} 35... Rd2+ {[%clk 0:00:06.2]} 36. Kh1 {[%clk 0:00:08.6]} 36... Qf3+ {[%clk 0:00:04.4]} 37. Rg2 {[%clk 0:00:06.9]} 37... Qxg2# {[%clk 0:00:03.3]} 0-1

[Event "Live Chess"]
[Site "Chess.com"]
[Date "2011.01.26"]
[Round "-"]
[White "Zelrome"]
[Black "hipposcottimus"]
[Result "0-1"]
[CurrentPosition "5k2/ppp1r1pp/5n2/8/3P1P2/2PK4/1P2p1nP/1N2R3 w - -"]
[Timezone "UTC"]
[ECO "C31"]
[ECOUrl "https://www.chess.com/openings/Kings-Gambit-Declined-Falkbeer-Accepted-Staunton-Line"]
[UTCDate "2011.01.26"]
[UTCTime "22:38:21"]
[WhiteElo "1800"]
[BlackElo "1613"]
[TimeControl "60"]
[Termination "hipposcottimus won on time"]
[StartTime "22:38:21"]
[EndDate "2011.01.26"]
[EndTime "22:40:32"]
[Link "https://www.chess.com/game/live/91711463"]

1. e4 {[%clk 0:01:00]} 1... e5 {[%clk 0:01:00]} 2. f4 {[%clk 0:00:59.5]} 2... d5 {[%clk 0:00:59.1]} 3. exd5 {[%clk 0:00:58.3]} 3... e4 {[%clk 0:00:58.8]} 4. d4 {[%clk 0:00:54.7]} 4... Qxd5 {[%clk 0:00:56.6]} 5. Nc3 {[%clk 0:00:53.3]} 5... Bb4 {[%clk 0:00:55.5]} 6. Bc4 {[%clk 0:00:52.2]} 6... Qa5 {[%clk 0:00:53]} 7. Bxf7+ {[%clk 0:00:50.8]} 7... Kxf7 {[%clk 0:00:49.8]} 8. Bd2 {[%clk 0:00:49.9]} 8... Nf6 {[%clk 0:00:48.5]} 9. Qe2 {[%clk 0:00:46.2]} 9... Re8 {[%clk 0:00:47.6]} 10. O-O-O {[%clk 0:00:45.5]} 10... Kg8 {[%clk 0:00:46.2]} 11. Nh3 {[%clk 0:00:40.7]} 11... Bg4 {[%clk 0:00:45.5]} 12. Qe3 {[%clk 0:00:37.3]} 12... Bxd1 {[%clk 0:00:44.5]} 13. Nxd1 {[%clk 0:00:35.9]} 13... Bxd2+ {[%clk 0:00:42.9]} 14. Qxd2 {[%clk 0:00:35.6]} 14... Qxa2 {[%clk 0:00:42.3]} 15. Nc3 {[%clk 0:00:34]} 15... e3 {[%clk 0:00:40.9]} 16. Qd3 {[%clk 0:00:31]} 16... Qa1+ {[%clk 0:00:37.4]} 17. Nb1 {[%clk 0:00:29.5]} 17... e2 {[%clk 0:00:36.5]} 18. Qc4+ {[%clk 0:00:22.2]} 18... Kh8 {[%clk 0:00:31.3]} 19. Re1 {[%clk 0:00:21.6]} 19... Qa6 {[%clk 0:00:24.4]} 20. Qb3 {[%clk 0:00:14.1]} 20... Qa5 {[%clk 0:00:22.1]} 21. Nc3 {[%clk 0:00:13.2]} 21... Nc6 {[%clk 0:00:19.6]} 22. Ng5 {[%clk 0:00:12.1]} 22... Qa1+ {[%clk 0:00:18]} 23. Nb1 {[%clk 0:00:10.6]} 23... Qa5 {[%clk 0:00:16.3]} 24. Nf7+ {[%clk 0:00:10.2]} 24... Kg8 {[%clk 0:00:12.8]} 25. Nd6+ {[%clk 0:00:09.8]} 25... Kf8 {[%clk 0:00:11.1]} 26. Nxe8 {[%clk 0:00:09.4]} 26... Rxe8 {[%clk 0:00:09.4]} 27. Qa3+ {[%clk 0:00:07.3]} 27... Re7 {[%clk 0:00:06.4]} 28. Qxa5 {[%clk 0:00:03.8]} 28... Nxa5 {[%clk 0:00:05.1]} 29. c3 {[%clk 0:00:02.7]} 29... Nc4 {[%clk 0:00:04.8]} 30. Kc2 {[%clk 0:00:01.6]} 30... Ne3+ {[%clk 0:00:04.4]} 31. Kd3 {[%clk 0:00:00.6]} 31... Nxg2 {[%clk 0:00:04.1]} 0-1

[Event "Live Chess"]
[Site "Chess.com"]
[Date "2011.01.26"]
[Round "-"]
[White "hipposcottimus"]
[Black "Renon-Allen"]
[Result "0-1"]
[CurrentPosition "6k1/1p4p1/2p1Pp1p/R4P2/8/P1P5/3r3r/5RK1 b - -"]
[Timezone "UTC"]
[ECO "C00"]
[ECOUrl "https://www.chess.com/openings/Pirc-Defense-Small-Center-Defense"]
[UTCDate "2011.01.26"]
[UTCTime "22:35:38"]
[WhiteElo "1613"]
[BlackElo "1635"]
[TimeControl "60"]
[Termination "Renon-Allen won by resignation"]
[StartTime "22:35:38"]
[EndDate "2011.01.26"]
[EndTime "22:37:45"]
[Link "https://www.chess.com/game/live/91710705"]

1. e4 {[%clk 0:01:00]} 1... d6 {[%clk 0:01:00]} 2. d4 {[%clk 0:00:58.5]} 2... e6 {[%clk 0:00:59.7]} 3. c4 {[%clk 0:00:57.1]} 3... a6 {[%clk 0:00:59.3]} 4. f4 {[%clk 0:00:56.4]} 4... h6 {[%clk 0:00:58.9]} 5. d5 {[%clk 0:00:55.8]} 5... e5 {[%clk 0:00:57.6]} 6. fxe5 {[%clk 0:00:55.2]} 6... dxe5 {[%clk 0:00:56.5]} 7. Nf3 {[%clk 0:00:54.9]} 7... Bd6 {[%clk 0:00:54.4]} 8. c5 {[%clk 0:00:53.6]} 8... Bxc5 {[%clk 0:00:50.5]} 9. Nxe5 {[%clk 0:00:53.3]} 9... Bd6 {[%clk 0:00:44.6]} 10. Nf3 {[%clk 0:00:51.9]} 10... Nf6 {[%clk 0:00:43.6]} 11. Be2 {[%clk 0:00:51.3]} 11... O-O {[%clk 0:00:42]} 12. O-O {[%clk 0:00:50.9]} 12... Qe8 {[%clk 0:00:39.5]} 13. Re1 {[%clk 0:00:48.1]} 13... Be5 {[%clk 0:00:38.7]} 14. Nc3 {[%clk 0:00:46.2]} 14... c6 {[%clk 0:00:36.9]} 15. d6 {[%clk 0:00:39.5]} 15... Bg4 {[%clk 0:00:35.6]} 16. h3 {[%clk 0:00:34.4]} 16... Bxf3 {[%clk 0:00:34.9]} 17. Bxf3 {[%clk 0:00:33.8]} 17... Qd7 {[%clk 0:00:34.1]} 18. Bg4 {[%clk 0:00:28.9]} 18... Nxg4 {[%clk 0:00:31.7]} 19. hxg4 {[%clk 0:00:28.6]} 19... a5 {[%clk 0:00:30.1]} 20. Rf1 {[%clk 0:00:26.4]} 20... Na6 {[%clk 0:00:28.2]} 21. Qf3 {[%clk 0:00:25]} 21... Nc5 {[%clk 0:00:25.2]} 22. Qf5 {[%clk 0:00:21.9]} 22... Bxc3 {[%clk 0:00:22.7]} 23. bxc3 {[%clk 0:00:15.8]} 23... Qxf5 {[%clk 0:00:21.3]} 24. gxf5 {[%clk 0:00:15.5]} 24... Nd3 {[%clk 0:00:20.5]} 25. Rf3 {[%clk 0:00:14.6]} 25... Nxc1 {[%clk 0:00:19.4]} 26. Rxc1 {[%clk 0:00:14.4]} 26... Rad8 {[%clk 0:00:18.5]} 27. Rcf1 {[%clk 0:00:14]} 27... Rxd6 {[%clk 0:00:17.2]} 28. e5 {[%clk 0:00:13.7]} 28... Rd2 {[%clk 0:00:15.1]} 29. a3 {[%clk 0:00:12.5]} 29... f6 {[%clk 0:00:14]} 30. e6 {[%clk 0:00:11.1]} 30... Re2 {[%clk 0:00:12.6]} 31. Rf4 {[%clk 0:00:09.7]} 31... Rd8 {[%clk 0:00:09.3]} 32. Ra4 {[%clk 0:00:09.1]} 32... Rdd2 {[%clk 0:00:08.1]} 33. Rxa5 {[%clk 0:00:06.5]} 33... Rxg2+ {[%clk 0:00:07.1]} 34. Kh1 {[%clk 0:00:06.2]} 34... Rh2+ {[%clk 0:00:06.4]} 35. Kg1 {[%clk 0:00:04.6]} 0-1

[Event "Live Chess"]
[Site "Chess.com"]
[Date "2011.01.26"]
[Round "-"]
[White "hipposcottimus"]
[Black "Kramer34"]
[Result "0-1"]
[CurrentPosition "5rk1/p3bb1n/1p6/2p1p1PK/2P1P3/3B4/PP6/4R3 w - -"]
[Timezone "UTC"]
[ECO "C00"]
[ECOUrl "https://www.chess.com/openings/Pirc-Defense-Small-Center-Defense"]
[UTCDate "2011.01.26"]
[UTCTime "22:32:57"]
[WhiteElo "1621"]
[BlackElo "1577"]
[TimeControl "60"]
[Termination "Kramer34 won on time"]
[StartTime "22:32:57"]
[EndDate "2011.01.26"]
[EndTime "22:34:57"]
[Link "https://www.chess.com/game/live/91709909"]

1. e4 {[%clk 0:01:00]} 1... d6 {[%clk 0:01:00]} 2. d4 {[%clk 0:00:58.5]} 2... e6 {[%clk 0:00:59.9]} 3. c4 {[%clk 0:00:56.6]} 3... Be7 {[%clk 0:00:59.8]} 4. f4 {[%clk 0:00:55.4]} 4... Nf6 {[%clk 0:00:58.5]} 5. Nf3 {[%clk 0:00:54.4]} 5... Nfd7 {[%clk 0:00:58.4]} 6. Bd3 {[%clk 0:00:52.5]} 6... O-O {[%clk 0:00:58.3]} 7. Be3 {[%clk 0:00:50.6]} 7... f6 {[%clk 0:00:58.2]} 8. O-O {[%clk 0:00:50.2]} 8... e5 {[%clk 0:00:58.1]} 9. f5 {[%clk 0:00:48.4]} 9... c5 {[%clk 0:00:56.6]} 10. dxe5 {[%clk 0:00:46.9]} 10... dxe5 {[%clk 0:00:55.6]} 11. Nc3 {[%clk 0:00:44.2]} 11... b6 {[%clk 0:00:54.8]} 12. Nd5 {[%clk 0:00:43.8]} 12... Bd6 {[%clk 0:00:51.9]} 13. Qe1 {[%clk 0:00:42.4]} 13... Bb7 {[%clk 0:00:51.3]} 14. Qh4 {[%clk 0:00:40.6]} 14... h6 {[%clk 0:00:48.5]} 15. Bxh6 {[%clk 0:00:34.6]} 15... gxh6 {[%clk 0:00:46.4]} 16. Qxh6 {[%clk 0:00:33.8]} 16... Rf7 {[%clk 0:00:46]} 17. Nh4 {[%clk 0:00:25]} 17... Rh7 {[%clk 0:00:45.2]} 18. Qg6+ {[%clk 0:00:23.6]} 18... Rg7 {[%clk 0:00:42.6]} 19. Qh6 {[%clk 0:00:22.6]} 19... Rh7 {[%clk 0:00:41.7]} 20. Qg6+ {[%clk 0:00:21.7]} 20... Rg7 {[%clk 0:00:40.5]} 21. Nxf6+ {[%clk 0:00:20.7]} 21... Nxf6 {[%clk 0:00:32.1]} 22. Qxf6 {[%clk 0:00:20.1]} 22... Qxf6 {[%clk 0:00:31.3]} 23. Ng6 {[%clk 0:00:19.7]} 23... Rxg6 {[%clk 0:00:29.7]} 24. fxg6 {[%clk 0:00:18]} 24... Qxg6 {[%clk 0:00:29.6]} 25. Rf3 {[%clk 0:00:12.7]} 25... Nd7 {[%clk 0:00:28.9]} 26. Rg3 {[%clk 0:00:11.1]} 26... Qxg3 {[%clk 0:00:27.1]} 27. hxg3 {[%clk 0:00:10.9]} 27... Rf8 {[%clk 0:00:26.1]} 28. Re1 {[%clk 0:00:09.1]} 28... Nf6 {[%clk 0:00:25.3]} 29. Kh2 {[%clk 0:00:08.5]} 29... Ng4+ {[%clk 0:00:24.8]} 30. Kh3 {[%clk 0:00:08.2]} 30... Nh6 {[%clk 0:00:22.4]} 31. g4 {[%clk 0:00:06]} 31... Nf7 {[%clk 0:00:22.3]} 32. Kh4 {[%clk 0:00:05.1]} 32... Bc8 {[%clk 0:00:22.2]} 33. g3 {[%clk 0:00:04]} 33... Be7+ {[%clk 0:00:21.7]} 34. g5 {[%clk 0:00:02.7]} 34... Nxg5 {[%clk 0:00:20.4]} 35. Kh5 {[%clk 0:00:02.4]} 35... Nh7 {[%clk 0:00:19.1]} 36. g4 {[%clk 0:00:01.7]} 36... Be6 {[%clk 0:00:18.6]} 37. g5 {[%clk 0:00:00.5]} 37... Bf7+ {[%clk 0:00:18.1]} 0-1

[Event "Live Chess"]
[Site "Chess.com"]
[Date "2011.01.26"]
[Round "-"]
[White "maher_1987"]
[Black "hipposcottimus"]
[Result "0-1"]
[CurrentPosition "r4rk1/pp4pp/2nb4/P5q1/3pQ1B1/3P3b/1PPB1Pp1/RN3RK1 w - -"]
[Timezone "UTC"]
[ECO "A00"]
[ECOUrl "https://www.chess.com/openings/Anderssen-Opening-Creepy-Crawly-Formation-Classical-Defense"]
[UTCDate "2011.01.26"]
[UTCTime "22:30:54"]
[WhiteElo "1240"]
[BlackElo "1621"]
[TimeControl "60"]
[Termination "hipposcottimus won on time"]
[StartTime "22:30:54"]
[EndDate "2011.01.26"]
[EndTime "22:32:31"]
[Link "https://www.chess.com/game/live/91709314"]

1. h3 {[%clk 0:01:00]} 1... e5 {[%clk 0:01:00]} 2. a3 {[%clk 0:00:59.5]} 2... d5 {[%clk 0:00:59.7]} 3. e3 {[%clk 0:00:58.3]} 3... c5 {[%clk 0:00:59.3]} 4. d3 {[%clk 0:00:56.6]} 4... Nc6 {[%clk 0:00:59]} 5. Be2 {[%clk 0:00:55.6]} 5... f5 {[%clk 0:00:58.6]} 6. Bd2 {[%clk 0:00:55]} 6... Nf6 {[%clk 0:00:57.2]} 7. Nf3 {[%clk 0:00:54.4]} 7... d4 {[%clk 0:00:57]} 8. exd4 {[%clk 0:00:51.1]} 8... cxd4 {[%clk 0:00:56.7]} 9. O-O {[%clk 0:00:46.7]} 9... Bd6 {[%clk 0:00:56.3]} 10. h4 {[%clk 0:00:44.9]} 10... O-O {[%clk 0:00:55.6]} 11. h5 {[%clk 0:00:43.7]} 11... Nxh5 {[%clk 0:00:54.5]} 12. Nh4 {[%clk 0:00:42.7]} 12... Qxh4 {[%clk 0:00:52.3]} 13. Bxh5 {[%clk 0:00:41.5]} 13... f4 {[%clk 0:00:51]} 14. a4 {[%clk 0:00:34.7]} 14... Qg5 {[%clk 0:00:49.9]} 15. a5 {[%clk 0:00:29.5]} 15... Bh3 {[%clk 0:00:48.8]} 16. Qf3 {[%clk 0:00:21.6]} 16... e4 {[%clk 0:00:43]} 17. Qxe4 {[%clk 0:00:08]} 17... f3 {[%clk 0:00:38.4]} 18. Bg4 {[%clk 0:00:01.1]} 18... fxg2 {[%clk 0:00:30.9]} 0-1

[Event "Live Chess"]
[Site "Chess.com"]
[Date "2011.01.26"]
[Round "-"]
[White "hipposcottimus"]
[Black "maher_1987"]
[Result "1-0"]
[CurrentPosition "r1bk4/pp1p1B1p/2p5/4Q3/3PPB2/8/PP3KPP/nN6 b - -"]
[Timezone "UTC"]
[ECO "C57"]
[ECOUrl "https://www.chess.com/openings/Italian-Game-Traxler-Knight-Sacrifice-Line"]
[UTCDate "2011.01.26"]
[UTCTime "22:28:58"]
[WhiteElo "1619"]
[BlackElo "1242"]
[TimeControl "60"]
[Termination "hipposcottimus won on time"]
[StartTime "22:28:58"]
[EndDate "2011.01.26"]
[EndTime "22:30:26"]
[Link "https://www.chess.com/game/live/91708759"]

1. e4 {[%clk 0:01:00]} 1... e5 {[%clk 0:01:00]} 2. Nf3 {[%clk 0:00:59.5]} 2... Nc6 {[%clk 0:00:59.4]} 3. Bc4 {[%clk 0:00:59.2]} 3... Nf6 {[%clk 0:00:58.5]} 4. Ng5 {[%clk 0:00:58.7]} 4... Bc5 {[%clk 0:00:51.3]} 5. Nxf7 {[%clk 0:00:54.4]} 5... Kf8 {[%clk 0:00:50.3]} 6. Nxd8 {[%clk 0:00:53]} 6... Ng4 {[%clk 0:00:48.4]} 7. O-O {[%clk 0:00:52]} 7... Nxf2 {[%clk 0:00:45.6]} 8. Qf3+ {[%clk 0:00:50.1]} 8... Ke7 {[%clk 0:00:34.6]} 9. Qf7+ {[%clk 0:00:47.4]} 9... Kxd8 {[%clk 0:00:32.3]} 10. Rxf2 {[%clk 0:00:43.2]} 10... Bxf2+ {[%clk 0:00:29]} 11. Kxf2 {[%clk 0:00:42.9]} 11... Nd4 {[%clk 0:00:24.3]} 12. Qxg7 {[%clk 0:00:41.3]} 12... Nxc2 {[%clk 0:00:22]} 13. Qxh8+ {[%clk 0:00:39.2]} 13... Ke7 {[%clk 0:00:20.3]} 14. Qxe5+ {[%clk 0:00:38.9]} 14... Kd8 {[%clk 0:00:18.9]} 15. Bf7 {[%clk 0:00:34.4]} 15... c6 {[%clk 0:00:11.5]} 16. d4 {[%clk 0:00:31.4]} 16... Nxa1 {[%clk 0:00:09.3]} 17. Bf4 {[%clk 0:00:31]} 1-0

[Event "Live Chess"]
[Site "Chess.com"]
[Date "2011.01.26"]
[Round "-"]
[White "01001011"]
[Black "hipposcottimus"]
[Result "0-1"]
[CurrentPosition "6k1/p1p3pp/2p2pb1/8/2P3P1/P7/1rr4P/RK5R w - -"]
[Timezone "UTC"]
[ECO "C42"]
[ECOUrl "https://www.chess.com/openings/Petrovs-Defense-Three-Knights-Game"]
[UTCDate "2011.01.26"]
[UTCTime "22:26:43"]
[WhiteElo "1616"]
[BlackElo "1617"]
[TimeControl "60"]
[Termination "hipposcottimus won by checkmate"]
[StartTime "22:26:43"]
[EndDate "2011.01.26"]
[EndTime "22:28:04"]
[Link "https://www.chess.com/game/live/91708185"]

1. e4 {[%clk 0:01:00]} 1... e5 {[%clk 0:01:00]} 2. Nc3 {[%clk 0:00:59.3]} 2... Nf6 {[%clk 0:00:57.8]} 3. Nf3 {[%clk 0:00:57.2]} 3... d5 {[%clk 0:00:57.5]} 4. d3 {[%clk 0:00:56.4]} 4... dxe4 {[%clk 0:00:56.6]} 5. dxe4 {[%clk 0:00:55.9]} 5... Qxd1+ {[%clk 0:00:51.8]} 6. Nxd1 {[%clk 0:00:55.5]} 6... Nxe4 {[%clk 0:00:51.2]} 7. Nc3 {[%clk 0:00:53.9]} 7... Nxc3 {[%clk 0:00:49.2]} 8. bxc3 {[%clk 0:00:52.5]} 8... Bd6 {[%clk 0:00:48.5]} 9. Bb2 {[%clk 0:00:51.8]} 9... O-O {[%clk 0:00:48.2]} 10. c4 {[%clk 0:00:51.1]} 10... f6 {[%clk 0:00:47.7]} 11. Bd3 {[%clk 0:00:49.5]} 11... Bb4+ {[%clk 0:00:47.3]} 12. Nd2 {[%clk 0:00:45.2]} 12... Re8 {[%clk 0:00:44.9]} 13. a3 {[%clk 0:00:43.5]} 13... e4 {[%clk 0:00:44]} 14. Be2 {[%clk 0:00:41.4]} 14... Bxd2+ {[%clk 0:00:41.4]} 15. Kxd2 {[%clk 0:00:40.5]} 15... Bf5 {[%clk 0:00:40.4]} 16. Kc1 {[%clk 0:00:38.9]} 16... Nc6 {[%clk 0:00:38.9]} 17. g4 {[%clk 0:00:37.8]} 17... Bg6 {[%clk 0:00:37.1]} 18. f3 {[%clk 0:00:35.5]} 18... exf3 {[%clk 0:00:34.3]} 19. Bxf3 {[%clk 0:00:34.9]} 19... Re3 {[%clk 0:00:33.9]} 20. Bg2 {[%clk 0:00:32.3]} 20... Re2 {[%clk 0:00:32.4]} 21. Bxc6 {[%clk 0:00:30.8]} 21... bxc6 {[%clk 0:00:32.1]} 22. Bc3 {[%clk 0:00:29.2]} 22... Rxc2+ {[%clk 0:00:28.7]} 23. Kb1 {[%clk 0:00:28.4]} 23... Rb8+ {[%clk 0:00:27.4]} 24. Bb2 {[%clk 0:00:24.8]} 24... Rbxb2# {[%clk 0:00:27]} 0-1

[Event "Live Chess"]
[Site "Chess.com"]
[Date "2011.01.26"]
[Round "-"]
[White "hipposcottimus"]
[Black "01001011"]
[Result "1/2-1/2"]
[CurrentPosition "8/8/8/8/7k/8/7K/8 w - -"]
[Timezone "UTC"]
[ECO "C42"]
[ECOUrl "https://www.chess.com/openings/Petrovs-Defense-Urusov-Gambit"]
[UTCDate "2011.01.26"]
[UTCTime "22:24:18"]
[WhiteElo "1609"]
[BlackElo "1624"]
[TimeControl "60"]
[Termination "Game drawn by insufficient material"]
[StartTime "22:24:18"]
[EndDate "2011.01.26"]
[EndTime "22:26:32"]
[Link "https://www.chess.com/game/live/91707460"]

1. e4 {[%clk 0:01:00]} 1... e5 {[%clk 0:01:00]} 2. Nf3 {[%clk 0:00:58.2]} 2... Nf6 {[%clk 0:00:59.3]} 3. Bc4 {[%clk 0:00:57]} 3... d6 {[%clk 0:00:57.9]} 4. d4 {[%clk 0:00:55.4]} 4... h6 {[%clk 0:00:57.3]} 5. dxe5 {[%clk 0:00:54.5]} 5... dxe5 {[%clk 0:00:56.6]} 6. Qxd8+ {[%clk 0:00:53.7]} 6... Kxd8 {[%clk 0:00:55.8]} 7. Nxe5 {[%clk 0:00:53.4]} 7... Nxe4 {[%clk 0:00:55.1]} 8. Nxf7+ {[%clk 0:00:51.8]} 8... Ke8 {[%clk 0:00:52.2]} 9. Nxh8 {[%clk 0:00:51.2]} 9... Bc5 {[%clk 0:00:51.1]} 10. O-O {[%clk 0:00:49.5]} 10... Bxf2+ {[%clk 0:00:49]} 11. Rxf2 {[%clk 0:00:49.3]} 11... Nxf2 {[%clk 0:00:48.3]} 12. Kxf2 {[%clk 0:00:49.1]} 12... Bf5 {[%clk 0:00:47.3]} 13. Na3 {[%clk 0:00:47.6]} 13... Nc6 {[%clk 0:00:45.3]} 14. Bf4 {[%clk 0:00:46.1]} 14... Kd7 {[%clk 0:00:43.9]} 15. Nf7 {[%clk 0:00:41.9]} 15... a6 {[%clk 0:00:41]} 16. Ne5+ {[%clk 0:00:40.4]} 16... Nxe5 {[%clk 0:00:39.3]} 17. Bxe5 {[%clk 0:00:40.2]} 17... b5 {[%clk 0:00:38.9]} 18. Bb3 {[%clk 0:00:39.8]} 18... Re8 {[%clk 0:00:37.8]} 19. Bxg7 {[%clk 0:00:38.5]} 19... h5 {[%clk 0:00:35.9]} 20. Rd1+ {[%clk 0:00:35.2]} 20... Kc8 {[%clk 0:00:34.3]} 21. Nb1 {[%clk 0:00:34.4]} 21... c5 {[%clk 0:00:33.4]} 22. a3 {[%clk 0:00:31.3]} 22... c4 {[%clk 0:00:32.7]} 23. Ba2 {[%clk 0:00:30.9]} 23... Re7 {[%clk 0:00:32.1]} 24. b3 {[%clk 0:00:30.4]} 24... Rxg7 {[%clk 0:00:31.2]} 25. bxc4 {[%clk 0:00:29.4]} 25... Bxc2 {[%clk 0:00:29.6]} 26. cxb5 {[%clk 0:00:26]} 26... Bxd1 {[%clk 0:00:27.4]} 27. bxa6 {[%clk 0:00:24]} 27... Ra7 {[%clk 0:00:24.9]} 28. Bc4 {[%clk 0:00:23.5]} 28... Ba4 {[%clk 0:00:22.4]} 29. Nc3 {[%clk 0:00:23.2]} 29... Bc6 {[%clk 0:00:21.5]} 30. Bb5 {[%clk 0:00:20.9]} 30... Bxb5 {[%clk 0:00:20.5]} 31. Nxb5 {[%clk 0:00:20.7]} 31... Rxa6 {[%clk 0:00:20]} 32. a4 {[%clk 0:00:20.2]} 32... Rxa4 {[%clk 0:00:19.1]} 33. g3 {[%clk 0:00:19.8]} 33... Ra2+ {[%clk 0:00:18.4]} 34. Kf3 {[%clk 0:00:18]} 34... Rxh2 {[%clk 0:00:17]} 35. Kf4 {[%clk 0:00:17.4]} 35... Rb2 {[%clk 0:00:16.5]} 36. Nd4 {[%clk 0:00:16.4]} 36... Rb4 {[%clk 0:00:15.4]} 37. Ke4 {[%clk 0:00:14]} 37... Kd7 {[%clk 0:00:14.7]} 38. Kd3 {[%clk 0:00:12.5]} 38... Kd6 {[%clk 0:00:12.9]} 39. Nf3 {[%clk 0:00:12.1]} 39... Rb3+ {[%clk 0:00:11.1]} 40. Ke4 {[%clk 0:00:11.8]} 40... Rxf3 {[%clk 0:00:10.1]} 41. Kxf3 {[%clk 0:00:10.9]} 41... Ke6 {[%clk 0:00:09.8]} 42. Kf4 {[%clk 0:00:09.4]} 42... Kf6 {[%clk 0:00:09.1]} 43. Kf3 {[%clk 0:00:07.9]} 43... Kg5 {[%clk 0:00:08.3]} 44. Kg2 {[%clk 0:00:06.9]} 44... h4 {[%clk 0:00:07.7]} 45. Kh2 {[%clk 0:00:05.9]} 45... Kg4 {[%clk 0:00:06]} 46. gxh4 {[%clk 0:00:03.7]} 46... Kxh4 {[%clk 0:00:05.3]} 1/2-1/2

[Event "Live Chess"]
[Site "Chess.com"]
[Date "2011.01.26"]
[Round "-"]
[White "01001011"]
[Black "hipposcottimus"]
[Result "1-0"]
[CurrentPosition "r1br2k1/ppp2ppp/2n5/6q1/8/2QBPN1P/PPP3P1/2KR3R b - -"]
[Timezone "UTC"]
[ECO "C26"]
[ECOUrl "https://www.chess.com/openings/Vienna-Game-Falkbeer-Variation-3.d3"]
[UTCDate "2011.01.26"]
[UTCTime "22:23:24"]
[WhiteElo "1624"]
[BlackElo "1609"]
[TimeControl "60"]
[Termination "01001011 won by resignation"]
[StartTime "22:23:24"]
[EndDate "2011.01.26"]
[EndTime "22:24:05"]
[Link "https://www.chess.com/game/live/91707204"]

1. e4 {[%clk 0:01:00]} 1... e5 {[%clk 0:01:00]} 2. d3 {[%clk 0:00:59.4]} 2... Nf6 {[%clk 0:00:58.2]} 3. Nc3 {[%clk 0:00:58.9]} 3... d5 {[%clk 0:00:57.9]} 4. exd5 {[%clk 0:00:57.4]} 4... Nxd5 {[%clk 0:00:57.7]} 5. Nxd5 {[%clk 0:00:56.8]} 5... Qxd5 {[%clk 0:00:57.4]} 6. Be3 {[%clk 0:00:56.4]} 6... Nc6 {[%clk 0:00:56.8]} 7. Nf3 {[%clk 0:00:55.9]} 7... Bc5 {[%clk 0:00:56.5]} 8. Be2 {[%clk 0:00:55.4]} 8... Bxe3 {[%clk 0:00:55.4]} 9. fxe3 {[%clk 0:00:55]} 9... e4 {[%clk 0:00:54.7]} 10. dxe4 {[%clk 0:00:52.4]} 10... Qxe4 {[%clk 0:00:54.4]} 11. Bd3 {[%clk 0:00:50.2]} 11... Qg4 {[%clk 0:00:50.1]} 12. Qd2 {[%clk 0:00:49.1]} 12... O-O {[%clk 0:00:48]} 13. O-O-O {[%clk 0:00:46.5]} 13... Rd8 {[%clk 0:00:44]} 14. h3 {[%clk 0:00:45.7]} 14... Qg5 {[%clk 0:00:42.1]} 15. Qc3 {[%clk 0:00:44.8]} 1-0